[Event "2nd Father Cup Blitz 2023"]
[Site "Rasht"]
[Date "2023.12.07"]
[Round "8.2"]
[White "Mosadeghpour, Masoud"]
[Black "Daghli, Arash"]
[Result "0-1"]
[ECO "C45"]
[WhiteElo "2473"]
[BlackElo "2410"]
[Annotator "RC"]
[PlyCount "60"]
[EventDate "2023.12.07"]
[EventType "swiss"]
[EventCountry "IRI"]
[SourceTitle "playchess.com"]
[Source "ChessBase"]
[SourceQuality "1"]
[TimeControl "300+2"]

1. e4 {[%emt 0:00:01]} e5 {[%emt 0:00:02]} 2. Nf3 {[%emt 0:00:03]} Nc6 {[%emt 0:00:01]} 3. d4 {[%emt 0:00:01]} exd4 {[%emt 0:00:01]} 4. Nxd4 {[%emt 0:00:02]} Nf6 {[%emt 0:00:06]} 5. Nxc6 {[%emt 0:00:01]} bxc6 {[%emt 0:00:01]} 6. Nd2 {[%emt 0:00:02]} d5 {[%emt 0:00:11]} 7. exd5 {[%emt 0:00:01]} cxd5 {[%emt 0:00:00]} 8. Bb5+ {[%emt 0:00:02]} Bd7 {[%emt 0:00:01]} 9. Bxd7+ {[%emt 0:00:01]} Qxd7 {[%emt 0:00:01]} 10. O-O {[%emt 0:00:02]} Be7 {[%emt 0:00:02]} 11. b3 {[%emt 0:00:01]} O-O {[%emt 0:00:04]} 12. Bb2 {[%emt 0:00:01]} Rfe8 {[%emt 0:00:03]} 13. Re1 {[%emt 0:00:02]} h6 {[%emt 0:00:03]} 14. Qf3 {[%emt 0:00:04]} Nh7 {[%emt 0:00:11]} 15. c4 {[%emt 0:00:22]} c6 {[%emt 0:00:44]} 16. cxd5 {[%emt 0:00:10]} cxd5 {[%emt 0:00:01]} 17. Rad1 {[%emt 0:00:04]} Bf6 {[%emt 0:00:10]} 18. Bxf6 {[%emt 0:00:02]} Nxf6 {[%emt 0:00:01]} 19. Qd3 {[%emt 0:00:02]} Qd6 {[%emt 0:00:41]} 20. Nf3 {[%emt 0:00:13]} Qa3 {[%emt 0:00:14]} 21. Qd2 {[%emt 0:00:16]} Rac8 {[%emt 0:00:50]} 22. Rxe8+ {[%emt 0:00:39]} Rxe8 {[%emt 0:00:01]} 23. Nd4 {[%emt 0:00:03]} Ne4 {[%emt 0:00:58]} 24. Qc2 {[%emt 0:00:02]} Qa5 {[%emt 0:00:31]} 25. a4 {[%emt 0:01:48]} Nc3 {[%emt 0:00:23]} 26. Rf1 {[%emt 0:00:30]} Qc5 {[%emt 0:00:02]} 27. Qd3 {[%emt 0:01:17]} Qxd4 {[%emt 0:00:01]} 28. Qa6 {[%emt 0:00:01]} Qb6 {[%emt 0:00:15]} 29. Qd3 {[%emt 0:00:03]} Qxb3 {[%emt 0:00:03]} 30. Kh1 {[%emt 0:00:01]} Qc4 {[%emt 0:00:01]} 0-1

[Event "2nd Father Cup Blitz 2023"]
[Site "Rasht"]
[Date "2023.12.07"]
[Round "8.3"]
[White "Mahdavi, Reza"]
[Black "Omidi, Arya"]
[Result "1-0"]
[ECO "B06"]
[WhiteElo "2312"]
[BlackElo "2301"]
[Annotator "RC"]
[PlyCount "97"]
[EventDate "2023.12.07"]
[EventType "swiss"]
[EventCountry "IRI"]
[SourceTitle "playchess.com"]
[Source "ChessBase"]
[SourceQuality "1"]
[TimeControl "300+2"]

1. e4 {[%emt 0:00:01]} g6 {[%emt 0:00:01]} 2. d4 {[%emt 0:00:01]} Bg7 {[%emt 0:00:01]} 3. Nc3 {[%emt 0:00:00]} a6 {[%emt 0:00:01]} 4. Be3 {[%emt 0:00:01]} d6 {[%emt 0:00:01]} 5. h4 {[%emt 0:00:01]} h6 {[%emt 0:00:01]} 6. Qd2 {[%emt 0:00:01]} b5 {[%emt 0:00:03]} 7. f3 {[%emt 0:00:07]} Nd7 {[%emt 0:00:03]} 8. O-O-O {[%emt 0:00:14]} Nb6 {[%emt 0:00:03]} 9. Bd3 {[%emt 0:00:05]} Bb7 {[%emt 0:00:16]} 10. Nh3 {[%emt 0:00:09]} e6 {[%emt 0:00:15]} 11. g4 {[%emt 0:00:18]} Qd7 {[%emt 0:01:03]} 12. Kb1 {[%emt 0:00:28]} Rc8 {[%emt 0:00:09]} 13. d5 {[%emt 0:00:36]} b4 {[%emt 0:00:29]} 14. Ne2 {[%emt 0:00:02]} exd5 {[%emt 0:00:07]} 15. exd5 {[%emt 0:00:03]} Nxd5 {[%emt 0:00:09]} 16. Bd4 {[%emt 0:00:01]} Ngf6 {[%emt 0:00:18]} 17. g5 {[%emt 0:00:08]} hxg5 {[%emt 0:00:03]} 18. Nxg5 {[%emt 0:00:18]} c5 {[%emt 0:00:02]} 19. Bxf6 {[%emt 0:00:02]} Nxf6 {[%emt 0:00:06]} 20. Nf4 {[%emt 0:00:05]} Rh6 {[%emt 0:01:12]} 21. Rde1+ {[%emt 0:01:49]} Kf8 {[%emt 0:00:03]} 22. h5 {[%emt 0:00:18]} gxh5 {[%emt 0:00:10]} 23. Nge6+ {[%emt 0:00:08]} fxe6 {[%emt 0:00:26]} 24. Nxe6+ {[%emt 0:00:01]} Kg8 {[%emt 0:00:23]} 25. Nxg7 {[%emt 0:00:02]} Qxg7 {[%emt 0:00:11]} 26. Rhg1 {[%emt 0:00:00]} Ng4 {[%emt 0:00:05]} 27. fxg4 {[%emt 0:00:01]} h4 {[%emt 0:00:07]} 28. g5 {[%emt 0:00:01]} Rh5 {[%emt 0:00:04]} 29. Be2 {[%emt 0:00:10]} Rh7 {[%emt 0:00:01]} 30. Bd3 {[%emt 0:00:12]} Rh5 {[%emt 0:00:02]} 31. Qe2 {[%emt 0:00:10]} Rxg5 {[%emt 0:00:09]} 32. Qe6+ {[%emt 0:00:01]} Kh8 {[%emt 0:00:00]} 33. Rxg5 {[%emt 0:00:01]} Qxg5 {[%emt 0:00:00]} 34. Qd7 {[%emt 0:00:13]} Qg7 {[%emt 0:00:00]} 35. Qxd6 {[%emt 0:00:08]} c4 {[%emt 0:00:02]} 36. Bf5 {[%emt 0:00:05]} Rf8 {[%emt 0:00:02]} 37. Bg6 {[%emt 0:00:05]} c3 {[%emt 0:00:02]} 38. a4 {[%emt 0:00:03]} bxa3 {[%emt 0:00:08]} 39. Re5 {[%emt 0:00:02]} Bf3 {[%emt 0:00:00]} 40. bxc3 {[%emt 0:00:05]} Qb7+ {[%emt 0:00:00]} 41. Kc1 {[%emt 0:00:02]} Qg7 {[%emt 0:00:01]} 42. Kb1 {[%emt 0:00:04]} h3 {[%emt 0:00:01]} 43. Rg5 {[%emt 0:00:02]} Qb7+ {[%emt 0:00:04]} 44. Kc1 {[%emt 0:00:01]} Qg7 {[%emt 0:00:01]} 45. Qg3 {[%emt 0:00:02]} Bg2 {[%emt 0:00:02]} 46. Qh4+ {[%emt 0:00:01]} Kg8 {[%emt 0:00:01]} 47. Bh7+ {[%emt 0:00:00]} Kh8 {[%emt 0:00:03]} 48. Bf5+ {[%emt 0:00:01]} Kg8 {[%emt 0:00:02]} 49. Be6+ {[%emt 0:00:00]} 1-0

[Event "2nd Father Cup Blitz 2023"]
[Site "Rasht"]
[Date "2023.12.07"]
[Round "8.4"]
[White "Mogheyseh, Abolfazl"]
[Black "Khoshkalam, Seyed Mehrab"]
[Result "0-1"]
[ECO "D36"]
[WhiteElo "2033"]
[BlackElo "2266"]
[Annotator "RC"]
[PlyCount "78"]
[EventDate "2023.12.07"]
[EventType "swiss"]
[EventCountry "IRI"]
[SourceTitle "playchess.com"]
[Source "ChessBase"]
[SourceQuality "1"]
[TimeControl "300+2"]

1. d4 {[%emt 0:00:02]} e6 {[%emt 0:00:03]} 2. c4 {[%emt 0:00:01]} Nf6 {[%emt 0:00:02]} 3. Nc3 {[%emt 0:00:01]} d5 {[%emt 0:00:03]} 4. cxd5 {[%emt 0:00:01]} exd5 {[%emt 0:00:01]} 5. Bg5 {[%emt 0:00:02]} Nbd7 {[%emt 0:00:04]} 6. e3 {[%emt 0:00:01]} Be7 {[%emt 0:00:05]} 7. Bd3 {[%emt 0:00:01]} O-O {[%emt 0:00:03]} 8. Nf3 {[%emt 0:00:02]} c6 {[%emt 0:00:02]} 9. O-O {[%emt 0:00:03]} Re8 {[%emt 0:00:01]} 10. Qc2 {[%emt 0:00:02]} Nf8 {[%emt 0:00:03]} 11. h3 {[%emt 0:00:01]} Ng6 {[%emt 0:00:01]} 12. Bxf6 {[%emt 0:00:05]} Bxf6 {[%emt 0:00:02]} 13. b4 {[%emt 0:00:01]} a6 {[%emt 0:00:02]} 14. a4 {[%emt 0:00:01]} Qd6 {[%emt 0:00:21]} 15. b5 {[%emt 0:00:11]} axb5 {[%emt 0:00:01]} 16. axb5 {[%emt 0:00:01]} Rxa1 {[%emt 0:00:01]} 17. Rxa1 {[%emt 0:00:01]} c5 {[%emt 0:00:02]} 18. Ra8 {[%emt 0:00:39]} Bd7 {[%emt 0:00:01]} 19. Ra4 {[%emt 0:01:22]} Rc8 {[%emt 0:00:04]} 20. Qb2 {[%emt 0:00:11]} cxd4 {[%emt 0:00:10]} 21. Nxd4 {[%emt 0:00:02]} Ne5 {[%emt 0:00:03]} 22. Be2 {[%emt 0:00:10]} Qc5 {[%emt 0:00:11]} 23. Ra3 {[%emt 0:00:42]} h6 {[%emt 0:00:12]} 24. Na4 {[%emt 0:00:29]} Qc1+ {[%emt 0:00:10]} 25. Qxc1 {[%emt 0:00:01]} Rxc1+ {[%emt 0:00:00]} 26. Kh2 {[%emt 0:00:01]} Nc4 {[%emt 0:01:04]} 27. Bxc4 {[%emt 0:00:02]} dxc4 {[%emt 0:00:01]} 28. Nc5 {[%emt 0:00:01]} Bxd4 {[%emt 0:01:22]} 29. Nxd7 {[%emt 0:00:02]} Ra1 {[%emt 0:00:05]} 30. Rxa1 {[%emt 0:00:38]} Bxa1 {[%emt 0:00:01]} 31. Nc5 {[%emt 0:00:05]} c3 {[%emt 0:00:03]} 32. Nb3 {[%emt 0:00:09]} c2 {[%emt 0:00:01]} 33. Kg3 {[%emt 0:00:07]} Bb2 {[%emt 0:00:03]} 34. Kf4 {[%emt 0:00:01]} Kf8 {[%emt 0:00:03]} 35. Ke4 {[%emt 0:00:03]} Ke7 {[%emt 0:00:06]} 36. Kd5 {[%emt 0:00:04]} c1=Q {[%emt 0:00:03]} 37. Nxc1 {[%emt 0:00:04]} Bxc1 {[%emt 0:00:01]} 38. Kc5 {[%emt 0:00:01]} Kd7 {[%emt 0:00:01]} 39. Kb6 {[%emt 0:00:00]} Kc8 {[%emt 0:00:01]} 0-1

[Event "2nd Father Cup Blitz 2023"]
[Site "Rasht"]
[Date "2023.12.07"]
[Round "9.1"]
[White "Daghli, Arash"]
[Black "Maghsoodloo, Parham"]
[Result "0-1"]
[ECO "A29"]
[WhiteElo "2410"]
[BlackElo "2742"]
[Annotator "TA"]
[PlyCount "82"]
[EventDate "2023.12.07"]
[EventType "swiss"]
[EventCountry "IRI"]
[SourceTitle "playchess.com"]
[Source "ChessBase"]
[SourceQuality "1"]
[TimeControl "300+2"]

{[%evp 12,82,2,9,22,-13,0,0,0,0,0,0,27,33,41,25,29,34,42,-119,-113,-122,-144,-212,-211,-230,-222,-349,-338,-322,-334,-317,-329,-304,-316,-321,-327,-314,-302,-343,-345,-445,-437,-445,-445,-399,-345,-374,-330,-376,-375,-364,-358,-337,-217,-323,-272,-274,-258,-287,-284,-264,-203,-262,-187,-242,-242,-854,-823,-29975,-29975,-29998,-29999]} 1. c4 {[%emt 0:00:01]} Nf6 {[%emt 0:00:02]} 2. Nc3 {[%emt 0:00:02]} e5 {[%emt 0:00:01]} 3. Nf3 {[%emt 0:00:01]} Nc6 {[%emt 0:00:01]} 4. g3 {[%emt 0:00:01]} Bb4 {[%emt 0:00:01]} 5. Bg2 {[%emt 0:00:01]} O-O {[%emt 0:00:02]} 6. O-O {[%emt 0:00:02]} Re8 {[%emt 0:00:04]} 7. d3 {[%emt 0:00:06]} a5 {[%emt 0:00:12] A29: English Opening: Four Knights Variation with 4 g3.} 8. e4 {[%emt 0:00:27]} h6 {[%emt 0:00:05]} 9. h3 {[%emt 0:00:03]} d6 {[%emt 0:00:02] The position is equal.} 10. Be3 {[%emt 0:00:05]} Bc5 {[%emt 0:00:02] [#]} 11. d4 $146 {[%emt 0:00:18]} ({Predecessor:} 11. Kh2 Nh7 12. Nd2 Be6 13. Nb3 Bxe3 14. fxe3 Qg5 15. Nd5 Bxd5 16. cxd5 Ne7 17. Qe2 {0-1 El Debs,F (2552)-Sevian,S (2660) PRO League Stage rapid 2020 (2)}) 11... exd4 {[%emt 0:00:13]} 12. Nxd4 {[%emt 0:00:01]} Ne5 {[%emt 0:00:01]} 13. b3 {[%emt 0:00:26]} Bd7 {[%emt 0:00:02]} 14. f4 {[%emt 0:00:21]} Nc6 {[%emt 0:00:04][%cal Od7h3]} 15. Qd2 $2 {[%emt 0:00:18] [#]} (15. Kh2 $14 {keeps the upper hand.}) 15... Bb4 $1 $17 {[%emt 0:00:07][%cal Od7h3] Black keeps a firm grip on the game.} 16. e5 {[%emt 0:01:09]} dxe5 {[%emt 0:00:06]} 17. Nxc6 {[%emt 0:00:11]} (17. Ndb5 $17 {was worth a try.}) 17... Bxc6 $19 {[%emt 0:00:03]} 18. Bxc6 {[%emt 0:00:46]} bxc6 {[%emt 0:00:01]} 19. Qxd8 {[%emt 0:00:04]} (19. f5 $142) 19... Raxd8 {[%emt 0:00:02]} (19... Rexd8 $2 {loses.} 20. Nd1 $19) 20. Na4 {[%emt 0:00:43]} Rd3 {[%emt 0:00:01]} 21. Bf2 {[%emt 0:00:22]} exf4 {[%emt 0:00:02]} 22. Rad1 {[%emt 0:00:02]} Rxd1 {[%emt 0:01:30]} 23. Rxd1 {[%emt 0:00:00]} fxg3 {[%emt 0:00:01]} 24. Bxg3 {[%emt 0:00:01]} Re2 {[%emt 0:00:02]} 25. Bxc7 {[%emt 0:00:14]} Rxa2 {[%emt 0:00:02]} 26. Bd6 {[%emt 0:00:04]} Ne4 {[%emt 0:00:07]} 27. Bxb4 {[%emt 0:00:02]} axb4 {[%emt 0:00:01][%mdl 4096] Endgame KRN-KRN} 28. Rd4 {[%emt 0:00:03]} Nd2 {[%emt 0:00:08] Threatens to win with ...Nf3+.} 29. Rd8+ {[%emt 0:00:03]} Kh7 {[%emt 0:00:01]} 30. Nc5 {[%emt 0:00:01]} Nf3+ {[%emt 0:00:19]} 31. Kf1 {[%emt 0:00:00]} g5 {[%emt 0:00:06]} 32. Rd6 {[%emt 0:00:04]} h5 {[%emt 0:00:13]} 33. Rf6 {[%emt 0:00:01]} (33. Rxc6 {might work better.} Nd2+ 34. Kg1) 33... g4 {[%emt 0:00:08]} 34. hxg4 {[%emt 0:00:00]} hxg4 {[%emt 0:00:01]} 35. Rxf7+ {[%emt 0:00:03]} Kg6 {[%emt 0:00:01]} 36. Rf8 {[%emt 0:00:01]} Nh2+ {[%emt 0:00:26]} 37. Kg1 {[%emt 0:00:03]} Re2 {[%emt 0:00:04]} 38. Nd3 {[%emt 0:00:02] [#]} (38. Na6 $142) 38... Kg5 $1 {[%emt 0:00:03]} 39. Rf2 $2 {[%emt 0:00:08]} (39. Nxb4 Kh4 40. Rf2 (40. Nxc6 {is a self mate.} Kg3 41. Rf1 Rg2+ {[%mdl 64] Deflection} 42. Kh1 Nxf1 43. Ne5 Kh3 44. Ng6 Ng3#) 40... Nf3+ 41. Kg2 Rxf2+ 42. Kxf2) 39... Nf3+ {[%emt 0:00:04]} 40. Kf1 {[%emt 0:00:00]} Re3 {[%emt 0:00:01]} 41. Nxb4 {[%emt 0:00:00]} Re1+ {[%emt 0:00:02] Weighted Error Value: White=0.67/Black=0.12 (very precise)} 0-1

[Event "2nd Father Cup Blitz 2023"]
[Site "Rasht"]
[Date "2023.12.07"]
[Round "9.2"]
[White "Khoshkalam, Seyed Mehrab"]
[Black "Salimiyan, Behzad"]
[Result "0-1"]
[ECO "A11"]
[WhiteElo "2266"]
[BlackElo "2111"]
[Annotator "RC"]
[PlyCount "64"]
[EventDate "2023.12.07"]
[EventType "swiss"]
[EventCountry "IRI"]
[SourceTitle "playchess.com"]
[Source "ChessBase"]
[SourceQuality "1"]
[TimeControl "300+2"]

1. Nf3 {[%emt 0:00:01]} d5 {[%emt 0:00:01]} 2. g3 {[%emt 0:00:01]} Nf6 {[%emt 0:00:04]} 3. Bg2 {[%emt 0:00:00]} c6 {[%emt 0:00:01]} 4. O-O {[%emt 0:00:02]} Bg4 {[%emt 0:00:01]} 5. c4 {[%emt 0:00:05]} e6 {[%emt 0:00:03]} 6. cxd5 {[%emt 0:00:02]} exd5 {[%emt 0:00:02]} 7. d3 {[%emt 0:00:01]} Be7 {[%emt 0:00:06]} 8. Qb3 {[%emt 0:00:02]} Qb6 {[%emt 0:00:04]} 9. Qc2 {[%emt 0:00:00]} O-O {[%emt 0:00:03]} 10. Nc3 {[%emt 0:00:01]} Nbd7 {[%emt 0:00:02]} 11. e4 {[%emt 0:00:01]} dxe4 {[%emt 0:00:05]} 12. dxe4 {[%emt 0:00:01]} Rad8 {[%emt 0:00:26]} 13. Be3 {[%emt 0:00:06]} Qa5 {[%emt 0:00:01]} 14. h3 {[%emt 0:00:06]} Bxf3 {[%emt 0:00:07]} 15. Bxf3 {[%emt 0:00:01]} Ne5 {[%emt 0:00:02]} 16. Be2 {[%emt 0:00:04]} Bc5 {[%emt 0:00:04]} 17. Bg5 {[%emt 0:00:04]} Rd6 {[%emt 0:00:19]} 18. a3 {[%emt 0:00:03]} Bd4 {[%emt 0:00:05]} 19. Kh1 {[%emt 0:00:32]} Rfd8 {[%emt 0:00:29]} 20. b4 {[%emt 0:00:12]} Qb6 {[%emt 0:00:16]} 21. f4 {[%emt 0:01:34]} Bxc3 {[%emt 0:00:39]} 22. Qxc3 {[%emt 0:00:01]} Nd3 {[%emt 0:00:33]} 23. e5 {[%emt 0:00:08]} Ne4 {[%emt 0:00:01]} 24. Bxd8 {[%emt 0:00:04]} Qxd8 {[%emt 0:00:01]} 25. Qc2 {[%emt 0:00:35]} Nxg3+ {[%emt 0:00:09]} 26. Kg2 {[%emt 0:00:16]} Nxf4+ {[%emt 0:00:12]} 27. Rxf4 {[%emt 0:00:17]} Nxe2 {[%emt 0:00:12]} 28. exd6 {[%emt 0:00:27]} Nxf4+ {[%emt 0:00:02]} 29. Kf3 {[%emt 0:00:16]} Qf6 {[%emt 0:00:30]} 30. Qe4 {[%emt 0:00:29]} Ne6+ {[%emt 0:00:03]} 31. Ke2 {[%emt 0:00:23]} Qxa1 {[%emt 0:00:05]} 32. d7 {[%emt 0:00:00]} Qd4 {[%emt 0:00:06]} 0-1

[Event "2nd Father Cup Blitz 2023"]
[Site "Rasht"]
[Date "2023.12.07"]
[Round "9.3"]
[White "Tahbaz, Arash"]
[Black "Mahdavi, Reza"]
[Result "1-0"]
[ECO "A08"]
[WhiteElo "2423"]
[BlackElo "2312"]
[Annotator "RC"]
[PlyCount "109"]
[EventDate "2023.12.07"]
[EventType "swiss"]
[EventCountry "IRI"]
[SourceTitle "playchess.com"]
[Source "ChessBase"]
[SourceQuality "1"]
[TimeControl "300+2"]

1. Nf3 {[%emt 0:00:02]} Nf6 {[%emt 0:00:01]} 2. g3 {[%emt 0:00:01]} g6 {[%emt 0:00:00]} 3. Bg2 {[%emt 0:00:01]} Bg7 {[%emt 0:00:01]} 4. O-O {[%emt 0:00:02]} O-O {[%emt 0:00:01]} 5. d3 {[%emt 0:00:01]} d5 {[%emt 0:00:01]} 6. Nbd2 {[%emt 0:00:01]} c5 {[%emt 0:00:01]} 7. e4 {[%emt 0:00:01]} dxe4 {[%emt 0:00:00]} 8. dxe4 {[%emt 0:00:00]} Nc6 {[%emt 0:00:01]} 9. Re1 {[%emt 0:00:01]} e5 {[%emt 0:00:01]} 10. c3 {[%emt 0:00:06]} Qc7 {[%emt 0:00:02]} 11. Qe2 {[%emt 0:00:16]} h6 {[%emt 0:00:06]} 12. b3 {[%emt 0:00:13]} Be6 {[%emt 0:00:03]} 13. Bb2 {[%emt 0:00:02]} Rad8 {[%emt 0:00:10]} 14. Rad1 {[%emt 0:00:02]} a6 {[%emt 0:00:12]} 15. Nf1 {[%emt 0:00:38]} Qa5 {[%emt 0:00:27]} 16. Rxd8 {[%emt 0:00:22]} Rxd8 {[%emt 0:00:02]} 17. Ra1 {[%emt 0:00:22]} b5 {[%emt 0:00:15]} 18. N3d2 {[%emt 0:00:01]} h5 {[%emt 0:00:35]} 19. Ne3 {[%emt 0:00:11]} h4 {[%emt 0:00:13]} 20. a3 {[%emt 0:00:16]} h3 {[%emt 0:00:26]} 21. Bf3 {[%emt 0:00:01]} Bh6 {[%emt 0:00:02]} 22. b4 {[%emt 0:00:03]} Qb6 {[%emt 0:00:01]} 23. Ndf1 {[%emt 0:00:01]} a5 {[%emt 0:00:08]} 24. bxc5 {[%emt 0:00:27]} Qxc5 {[%emt 0:00:02]} 25. Rd1 {[%emt 0:00:01]} Rxd1 {[%emt 0:00:03]} 26. Qxd1 {[%emt 0:00:01]} a4 {[%emt 0:00:42]} 27. Nd5 {[%emt 0:01:10]} Bxd5 {[%emt 0:00:02]} 28. exd5 {[%emt 0:00:00]} Na5 {[%emt 0:00:00]} 29. d6 {[%emt 0:00:01]} Nd7 {[%emt 0:00:33]} 30. Bg4 {[%emt 0:00:39]} f5 {[%emt 0:00:01]} 31. Bxh3 {[%emt 0:00:02]} Nc4 {[%emt 0:00:00]} 32. Bc1 {[%emt 0:00:03]} Bxc1 {[%emt 0:00:39]} 33. Qxc1 {[%emt 0:00:01]} Qxd6 {[%emt 0:00:01]} 34. g4 {[%emt 0:00:28]} f4 {[%emt 0:00:05]} 35. g5 {[%emt 0:00:01]} Nc5 {[%emt 0:00:05]} 36. Qb1 {[%emt 0:00:02]} Qc6 {[%emt 0:00:24]} 37. Bg2 {[%emt 0:00:03]} e4 {[%emt 0:00:01]} 38. Qd1 {[%emt 0:00:08]} Qd6 {[%emt 0:00:19]} 39. Qg4 {[%emt 0:00:03]} Ne5 {[%emt 0:00:14]} 40. Qc8+ {[%emt 0:00:03]} Kf7 {[%emt 0:00:00]} 41. h4 {[%emt 0:00:02]} Qc6 {[%emt 0:00:17]} 42. Qh8 {[%emt 0:00:01]} Ke6 {[%emt 0:00:03]} 43. Nd2 {[%emt 0:00:06]} f3 {[%emt 0:00:04]} 44. Bh3+ {[%emt 0:00:01]} Kd5 {[%emt 0:00:02]} 45. Qg8+ {[%emt 0:00:04]} Ne6 {[%emt 0:00:01]} 46. Nf1 {[%emt 0:00:09]} Kc5 {[%emt 0:00:04]} 47. Qxe6 {[%emt 0:00:02]} Qxe6 {[%emt 0:00:01]} 48. Bxe6 {[%emt 0:00:16]} Kd6 {[%emt 0:00:02]} 49. Ba2 {[%emt 0:00:00]} Nd3 {[%emt 0:00:02]} 50. h5 {[%emt 0:00:00]} Ke7 {[%emt 0:00:03]} 51. h6 {[%emt 0:00:00]} Kf8 {[%emt 0:00:01]} 52. Ng3 {[%emt 0:00:00]} Nc5 {[%emt 0:00:01]} 53. Bb1 {[%emt 0:00:00]} Kg8 {[%emt 0:00:03]} 54. Nxe4 {[%emt 0:00:00]} Ne6 {[%emt 0:00:01]} 55. Bd3 {[%emt 0:00:01]} 1-0

[Event "2nd Father Cup Blitz 2023"]
[Site "Rasht"]
[Date "2023.12.07"]
[Round "9.4"]
[White "Azadi, Amirmohammad"]
[Black "Mosadeghpour, Masoud"]
[Result "1/2-1/2"]
[ECO "A13"]
[WhiteElo "2250"]
[BlackElo "2473"]
[Annotator "RC"]
[PlyCount "150"]
[EventDate "2023.12.07"]
[EventType "swiss"]
[EventCountry "IRI"]
[SourceTitle "playchess.com"]
[Source "ChessBase"]
[SourceQuality "1"]
[TimeControl "300+2"]

1. c4 {[%emt 0:00:02]} Nf6 {[%emt 0:00:05]} 2. g3 {[%emt 0:00:01]} e6 {[%emt 0:00:01]} 3. Bg2 {[%emt 0:00:01]} d5 {[%emt 0:00:01]} 4. Nf3 {[%emt 0:00:01]} Nbd7 {[%emt 0:00:03]} 5. O-O {[%emt 0:00:09]} dxc4 {[%emt 0:00:02]} 6. Qc2 {[%emt 0:00:02]} Nb6 {[%emt 0:00:00]} 7. a4 {[%emt 0:00:01]} a5 {[%emt 0:00:02]} 8. Na3 {[%emt 0:00:04]} Bxa3 {[%emt 0:00:02]} 9. Rxa3 {[%emt 0:00:01]} Nfd5 {[%emt 0:00:06]} 10. Ne5 {[%emt 0:00:24]} Nb4 {[%emt 0:00:04]} 11. Qc3 {[%emt 0:00:07]} O-O {[%emt 0:00:05]} 12. Nxc4 {[%emt 0:00:09]} N6d5 {[%emt 0:00:01]} 13. Qb3 {[%emt 0:00:09]} c5 {[%emt 0:00:19]} 14. d3 {[%emt 0:00:09]} b6 {[%emt 0:00:06]} 15. Bd2 {[%emt 0:00:07]} Rb8 {[%emt 0:00:27]} 16. Raa1 {[%emt 0:00:07]} Bd7 {[%emt 0:00:13]} 17. Bc3 {[%emt 0:00:02]} Nc6 {[%emt 0:00:30]} 18. Rfd1 {[%emt 0:00:06]} Qg5 {[%emt 0:00:29]} 19. d4 {[%emt 0:00:23]} Nxc3 {[%emt 0:00:14]} 20. bxc3 {[%emt 0:00:07]} cxd4 {[%emt 0:00:02]} 21. cxd4 {[%emt 0:00:10]} Nb4 {[%emt 0:00:01]} 22. Ne5 {[%emt 0:00:05]} Qe7 {[%emt 0:00:02]} 23. Nxd7 {[%emt 0:00:29]} Qxd7 {[%emt 0:00:01]} 24. d5 {[%emt 0:00:00]} exd5 {[%emt 0:00:38]} 25. Bxd5 {[%emt 0:00:02]} Qe7 {[%emt 0:00:01]} 26. Bf3 {[%emt 0:00:03]} Rfd8 {[%emt 0:00:01]} 27. Kg2 {[%emt 0:00:05]} Rxd1 {[%emt 0:00:07]} 28. Rxd1 {[%emt 0:00:01]} Rd8 {[%emt 0:00:01]} 29. Rc1 {[%emt 0:00:07]} g6 {[%emt 0:00:28]} 30. Qc4 {[%emt 0:00:02]} Qd6 {[%emt 0:00:01]} 31. h4 {[%emt 0:00:05]} h5 {[%emt 0:01:51]} 32. Rc3 {[%emt 0:00:06]} Qd4 {[%emt 0:00:00]} 33. Qb3 {[%emt 0:00:11]} Qd1 {[%emt 0:00:00]} 34. Qxd1 {[%emt 0:00:55]} Rxd1 {[%emt 0:00:06]} 35. Rc8+ {[%emt 0:00:01]} Kg7 {[%emt 0:00:00]} 36. Rb8 {[%emt 0:00:01]} Rd6 {[%emt 0:00:00]} 37. Rc8 {[%emt 0:00:34]} Rd4 {[%emt 0:00:00]} 38. Rc7 {[%emt 0:00:04]} Na6 {[%emt 0:00:00]} 39. Rc6 {[%emt 0:00:11]} Rb4 {[%emt 0:00:00]} 40. Bd5 {[%emt 0:00:02]} f5 {[%emt 0:00:00]} 41. Bc4 {[%emt 0:00:15]} Nc5 {[%emt 0:00:00]} 42. Bb5 {[%emt 0:00:01]} Rb2 {[%emt 0:00:00]} 43. Kf3 {[%emt 0:00:07]} Kh6 {[%emt 0:00:04]} 44. Rd6 {[%emt 0:00:08]} Rb3+ {[%emt 0:00:01]} 45. Kg2 {[%emt 0:00:02]} Rb2 {[%emt 0:00:09]} 46. Be8 {[%emt 0:00:13]} Rxe2 {[%emt 0:00:01]} 47. Bxg6 {[%emt 0:00:02]} Rxf2+ {[%emt 0:00:02]} 48. Kg1 {[%emt 0:00:04]} Rf3 {[%emt 0:00:04]} 49. Be8+ {[%emt 0:00:04]} Kg7 {[%emt 0:00:01]} 50. Bxh5 {[%emt 0:00:11]} Rxg3+ {[%emt 0:00:02]} 51. Kh2 {[%emt 0:00:00]} f4 {[%emt 0:00:04]} 52. Rxb6 {[%emt 0:00:05]} Ra3 {[%emt 0:00:03]} 53. Rg6+ {[%emt 0:00:01]} Kh7 {[%emt 0:00:01]} 54. Rf6 {[%emt 0:00:02]} Rxa4 {[%emt 0:00:01]} 55. Be8 {[%emt 0:00:03]} Rd4 {[%emt 0:00:06]} 56. h5 {[%emt 0:00:03]} Rd2+ {[%emt 0:00:01]} 57. Kh3 {[%emt 0:00:01]} Rd8 {[%emt 0:00:02]} 58. Bg6+ {[%emt 0:00:02]} Kh6 {[%emt 0:00:01]} 59. Rxf4 {[%emt 0:00:01]} a4 {[%emt 0:00:02]} 60. Rc4 {[%emt 0:00:00]} Rd5 {[%emt 0:00:01]} 61. Bf7 {[%emt 0:00:05]} Rf5 {[%emt 0:00:02]} 62. Bg6 {[%emt 0:00:01]} Rd5 {[%emt 0:00:00]} 63. Bf7 {[%emt 0:00:01]} Rf5 {[%emt 0:00:01]} 64. Bg6 {[%emt 0:00:01]} Re5 {[%emt 0:00:00]} 65. Rc3 {[%emt 0:00:03]} Ne6 {[%emt 0:00:07]} 66. Rc6 {[%emt 0:00:05]} Kg7 {[%emt 0:00:05]} 67. Ra6 {[%emt 0:00:01]} Nc5 {[%emt 0:00:01]} 68. Ra7+ {[%emt 0:00:01]} Kh6 {[%emt 0:00:01]} 69. Kg4 {[%emt 0:00:01]} Rg5+ {[%emt 0:00:02]} 70. Kh4 {[%emt 0:00:01]} Rxg6 {[%emt 0:00:02]} 71. hxg6 {[%emt 0:00:01]} Kxg6 {[%emt 0:00:01]} 72. Ra5 {[%emt 0:00:01]} Nd7 {[%emt 0:00:01]} 73. Rxa4 {[%emt 0:00:01]} Kf6 {[%emt 0:00:01]} 74. Ra6+ {[%emt 0:00:01]} Ke5 {[%emt 0:00:02]} 75. Re6+ {[%emt 0:00:02]} Kxe6 {[%emt 0:00:02]} 1/2-1/2